fUST/lending_fUST_20251030
["ID","MTS","AMOUNT","RATE_DAILY","PERIOD"]
[392632461,1761765042146,-503.54312379,0.00033702,2]
[392632462,1761765042157,-500.0,0.00033702,2]
[392632463,1761765042170,-500.0,0.00033702,2]
[392632464,1761765042183,-500.0,0.00033702,2]
[392632465,1761765042193,-330.56378854,0.00033702,120]
[392632466,1761765042204,-500.56644751,0.00033702,2]
[392632467,1761765042214,-501.02513641,0.00033702,2]
[392632468,1761765042224,-500.0,0.00033702,2]
[392632469,1761765042235,-501.03716266,0.00033702,2]
[392632470,1761765042247,-500.0,0.00033702,120]
[392632471,1761765042258,-500.0,0.00033702,120]
[392632472,1761765042270,-500.0,0.00033702,120]
[392632473,1761765042282,-500.0,0.00033702,120]
[392632475,1761765042295,-500.0,0.00033702,2]
[392632476,1761765042306,-500.0,0.00033702,120]
[392632477,1761765042317,-290.69,0.00033702,120]
[392632478,1761765042330,-504.1783238,0.00033702,2]
[392632479,1761765042343,-500.0,0.00033702,2]
[392632480,1761765042355,-500.0,0.00033702,120]
[392632481,1761765042368,-200.0,0.00033702,2]
[392632482,1761765042379,-501.77213903,0.00033702,2]
[392632483,1761765042389,-501.92246756,0.00033702,2]
[392632484,1761765042400,-510.69745055,0.00033702,2]
[392632485,1761765042410,-500.85147067,0.00033702,2]
[392632486,1761765042420,-500.54102458,0.00033702,2]
[392632487,1761765042432,-500.0,0.00033702,2]
[392632488,1761765042445,-512.48,0.00033702,120]
[392632489,1761765042458,-501.0595678,0.00033702,2]
[392632490,1761765042469,-503.36435994,0.00033702,2]
[392632491,1761765042479,-500.0,0.00033702,2]
[392632492,1761765042490,-500.0,0.00033702,2]
[392632493,1761765042501,-500.0,0.00033702,120]
[392632494,1761765042512,-500.0,0.00033702,2]
[392632495,1761765042524,-500.0,0.00033702,120]
[392632496,1761765042536,-500.0,0.00033702,2]
[392632497,1761765042546,-341.31,0.00033702,120]
[392632498,1761765042556,-500.24644835,0.00033702,2]
[392632500,1761765042566,-503.30381181,0.00033702,2]
[392632501,1761765042576,-500.0,0.00033702,2]
[392632502,1761765042589,-501.29690772,0.00033702,2]
[392632503,1761765042600,-501.56288323,0.00033702,2]
[392632504,1761765042610,-500.0,0.00033702,2]
[392632505,1761765042620,-500.0,0.00033702,120]
[392632506,1761765042631,-500.0,0.00033702,120]
[392632507,1761765042642,-502.74077661,0.00033702,2]
[392632508,1761765042652,-427.94,0.00033702,120]
[392632509,1761765042662,-500.0,0.00033702,2]
[392632510,1761765042675,-500.0,0.00033702,2]
[392632511,1761765042686,-500.0,0.00033702,2]
[392632512,1761765042697,-501.05875115,0.00033702,2]
[392632513,1761765042708,-500.0,0.00033702,2]
[392632514,1761765042720,-500.0,0.00033702,2]
[392632515,1761765042730,-500.0,0.00033702,120]
[392632516,1761765042742,-502.85,0.00033702,120]
[392632517,1761765042752,-500.0,0.00033702,2]
[392632518,1761765042763,-500.0,0.00033702,120]
[392632519,1761765042773,-414.35,0.00033702,120]
[392632520,1761765042784,-500.0,0.00033702,2]
[392632521,1761765042795,-500.0,0.00033702,120]
[392632522,1761765042805,-500.0,0.00033702,120]
[392632523,1761765042817,-439.99,0.00033702,120]
[392632524,1761765042827,-500.0,0.00033702,2]
[392632525,1761765042839,-500.0,0.00033702,2]
[392632526,1761765042850,-500.25643374,0.00033702,30]
[392632527,1761765042860,-500.0,0.00033702,120]
[392632528,1761765042871,-500.94100949,0.00033702,2]
[392632529,1761765042882,-500.0,0.00033702,2]
[392632530,1761765042892,-500.0,0.00033702,120]
[392632531,1761765042903,-500.0,0.00033702,120]
[392632532,1761765042918,-242.83730637,0.00033702,2]
[392632533,1761765042928,-348.42,0.00033702,120]
[392632534,1761765042939,-500.0,0.00033702,2]
[392632535,1761765042951,-500.0,0.00033702,120]
[392632536,1761765042962,-500.0,0.00033702,2]
[392632537,1761765042973,-500.0,0.00033702,120]
[392632538,1761765042986,-500.0,0.00033702,120]
[392632539,1761765042999,-362.58,0.00033702,120]
[392632540,1761765043011,-500.99452573,0.00033702,2]
[392632541,1761765043022,-462.2885001,0.00033702,2]
[392632542,1761765043033,-500.0,0.00033702,2]
[392632543,1761765043045,-411.81603754,0.00033702,120]
[392632544,1761765043056,-500.0,0.00033702,2]
[392632545,1761765043067,-500.0,0.00033702,14]
[392632546,1761765043078,-500.0,0.00033702,14]
[392632547,1761765043092,-500.0,0.00033702,14]
[392632548,1761765043104,-500.0,0.00033702,14]
[392632549,1761765043115,-500.0,0.00033702,14]
[392632550,1761765043127,-500.0,0.00033702,14]
[392632551,1761765043138,-566.58034241,0.00033702,14]
[392632552,1761765043150,-501.21958243,0.00033702,2]
[392632553,1761765043161,-500.0,0.00033702,2]
[392632554,1761765043172,-500.0,0.00033702,120]
[392632555,1761765043183,-500.0,0.00033702,120]
[392632556,1761765043195,-500.0,0.00033702,120]
[392632557,1761765043207,-500.0,0.00033702,120]
[392632558,1761765043219,-500.84184559,0.00033702,2]
[392632559,1761765043230,-500.0,0.00033702,120]
[392632560,1761765043241,-491.01023228,0.00033702,2]
[392632561,1761765043252,-500.0,0.00033702,2]
[392632562,1761765043263,-500.0,0.00033702,120]
[392632563,1761765043274,-501.23829515,0.00033702,2]
[392632564,1761765043285,-500.0,0.00033702,2]
[392632565,1761765043296,-501.75994266,0.00033702,2]
[392632566,1761765043307,-500.0,0.00033702,120]
[392632567,1761765043318,-366.65,0.00033702,120]
[392632568,1761765043330,-500.0,0.00033702,2]
[392632569,1761765043344,-501.76082034,0.00033702,120]
[392632570,1761765043354,-500.0,0.00033702,2]
[392632571,1761765043366,-646.25261694,0.00033702,2]
[392632572,1761765043376,-607.75904287,0.00033702,2]
[392632573,1761765043387,-501.21047282,0.00033702,2]
[392632574,1761765043398,-500.0,0.00033702,2]
[392632575,1761765043408,-500.0,0.00033702,120]
[392632576,1761765043419,-500.0,0.00033702,120]
[392632577,1761765043430,-520.79,0.00033702,120]
[392632578,1761765043442,-500.85332846,0.00033702,2]
[392632579,1761765043453,-500.4134157,0.00033702,2]
[392632580,1761765043465,-380.14701174,0.00033702,2]
[392632581,1761765043474,-500.0,0.00033702,2]
[392632582,1761765043484,-500.0,0.00033702,120]
[392632583,1761765043493,-500.0,0.00033702,120]
[392632584,1761765043503,-501.14584918,0.00033702,2]
[392632585,1761765043513,-566.5,0.00033702,120]
[392632586,1761765043522,-500.41696357,0.00033702,2]
[392632602,1761765043700,-500.27084916,0.00033702,2]
[392632604,1761765043716,-500.53778093,0.00033702,2]
[392632606,1761765043726,-500.0,0.00033702,2]
[392632608,1761765043735,-500.0,0.00033702,120]
[392632610,1761765043745,-500.0,0.00033702,120]
[392632612,1761765043754,-500.0,0.00033702,120]
[392632614,1761765043764,-500.0,0.00033702,120]
[392632616,1761765043774,-500.0,0.00033702,120]
[392632618,1761765043783,-500.0,0.00033702,120]
[392632620,1761765043793,-500.0,0.00033702,2]
[392632623,1761765043802,-500.0,0.00033702,120]
[392632625,1761765043812,-500.0,0.00033702,120]
[392632626,1761765043821,-215.32,0.00033702,120]
[392632629,1761765043832,-379.97,0.00033702,120]
[392632630,1761765043841,-501.19254182,0.00033702,2]
[392632632,1761765043851,-500.9734103,0.00033702,2]
[392632634,1761765043870,-500.0,0.00033702,2]
[392632636,1761765043880,-500.0,0.00033702,120]
[392632639,1761765043889,-500.0,0.00033702,120]
[392632641,1761765043899,-539.22,0.00033702,120]
[392632642,1761765043913,-500.0,0.00033702,2]
[392632645,1761765043926,-500.0,0.00033702,120]
[392632647,1761765043935,-502.18447959,0.00033702,2]
[392632649,1761765043946,-362.09,0.00033702,120]
[392632651,1761765043957,-500.0,0.00033702,2]
[392632652,1761765043966,-500.0,0.00033702,120]
[392632655,1761765043976,-500.0,0.00033702,2]
[392632657,1761765043985,-171.08,0.00033702,120]
[392632658,1761765043998,-500.0,0.00033702,120]
[392632660,1761765044007,-512.34831545,0.00033702,2]
[392632662,1761765044016,-500.0,0.00033702,2]
[392632664,1761765044026,-501.72599945,0.00033702,2]
[392632666,1761765044035,-500.0,0.00033702,2]
[392632668,1761765044046,-500.0,0.00033702,120]
[392632670,1761765044056,-500.0,0.00033702,2]
[392632672,1761765044065,-500.0,0.00033702,2]
[392632674,1761765044074,-500.50911088,0.00033702,2]
[392632676,1761765044087,-500.86424632,0.00033702,2]
[392632678,1761765044096,-500.0,0.00033702,2]
[392632680,1761765044105,-500.54190421,0.00033702,2]
[392632683,1761765044115,-502.89842822,0.00033702,2]
[392632685,1761765044125,-500.94476389,0.00033702,2]
[392632687,1761765044135,-500.0,0.00033702,2]
[392632689,1761765044144,-500.0,0.00033702,120]
[392632691,1761765044154,-165.87,0.00033702,120]
[392632693,1761765044164,-500.0,0.00033702,2]
[392632695,1761765044174,-162.29230125,0.00033702,2]
[392632697,1761765044183,-500.0,0.00033702,120]
[392632699,1761765044192,-500.0,0.00033702,2]
[392632701,1761765044202,-500.0,0.00033702,120]
[392632703,1761765044212,-550.89783092,0.00033702,2]
[392632705,1761765044220,-500.0,0.00033702,2]
[392632707,1761765044230,-185.46,0.00033702,120]
[392632709,1761765044239,-500.0,0.00033702,120]
[392632711,1761765044248,-500.0,0.00033702,2]
[392632713,1761765044258,-527.71,0.00033702,120]
[392632715,1761765044267,-500.0,0.00033702,2]
[392632716,1761765044277,-500.0,0.00033702,120]
[392632718,1761765044286,-226.2,0.00033702,120]
[392632720,1761765044295,-501.36240879,0.00033702,2]
[392632722,1761765044304,-500.0,0.00033702,2]
[392632724,1761765044314,-500.0,0.00033702,120]
[392632726,1761765044323,-500.0,0.00033702,120]
[392632728,1761765044333,-177.47,0.00033702,120]
[392632730,1761765044342,-465.33503315,0.00033702,2]
[392632732,1761765044351,-593.2,0.00033702,2]
[392632734,1761765044361,-593.2,0.00033702,120]
[392632736,1761765044371,-500.78530666,0.00033702,2]
[392632738,1761765044381,-593.2,0.00033702,120]
[392632740,1761765044391,-500.45414984,0.00033702,2]
[392632742,1761765044401,-500.0,0.00033702,2]
[392632744,1761765044411,-593.2,0.00033702,120]
[392632746,1761765044420,-500.0,0.00033702,120]
[392632748,1761765044429,-593.2,0.00033702,120]
[392632750,1761765044438,-500.3711978,0.00033702,2]
[392632752,1761765044448,-500.0,0.00033702,120]
[392632754,1761765044458,-593.2,0.00033702,120]
[392632756,1761765044468,-186.52,0.00033702,120]
[392632758,1761765044477,-593.2,0.00033702,120]
[392632760,1761765044488,-593.2,0.00033702,120]
[392632762,1761765044498,-593.2,0.00033702,120]
[392632764,1761765044507,-500.39503514,0.00033702,2]
[392632766,1761765044516,-593.2,0.00033702,120]
[392632768,1761765044525,-593.2,0.00033702,120]
[392632770,1761765044534,-593.2,0.00033702,120]
[392632772,1761765044543,-593.2,0.00033702,120]
[392632774,1761765044552,-500.0,0.00033702,2]
[392632776,1761765044561,-593.2,0.00033702,120]
[392632777,1761765044570,-500.0,0.00033702,120]
[392632779,1761765044580,-593.2,0.00033702,120]
[392632781,1761765044590,-593.2,0.00033702,120]
[392632783,1761765044599,-500.86730896,0.00033702,2]
[392632785,1761765044608,-593.2,0.00033702,120]
[392632787,1761765044617,-593.2,0.00033702,120]
[392632789,1761765044626,-500.0,0.00033702,2]
[392632791,1761765044635,-593.2,0.00033702,120]
[392632793,1761765044645,-542.45,0.00033702,120]
[392632795,1761765044655,-593.2,0.00033702,120]
[392632797,1761765044664,-500.0,0.00033702,2]
[392632799,1761765044673,-593.2,0.00033702,120]
[392632801,1761765044681,-500.0,0.00033702,2]
[392632803,1761765044690,-500.0,0.00033702,2]
[392632805,1761765044699,-593.2,0.00033702,120]
[392632807,1761765044709,-500.0,0.00033702,120]
[392632809,1761765044718,-593.2,0.00033702,120]
[392632811,1761765044731,-500.0,0.00033702,120]
[392632813,1761765044741,-593.2522751,0.00033702,120]
[392632815,1761765044750,-368.86,0.00033702,120]
[392632817,1761765044759,-500.26778043,0.00033702,2]
[392632818,1761765044768,-500.23270769,0.00033702,2]
[392632820,1761765044776,-500.0,0.00033702,2]
[392632821,1761765044786,-558.67,0.00033702,120]
[392632822,1761765044795,-500.4062946,0.00033702,2]
[392632823,1761765044803,-500.32127735,0.00033702,2]
[392632824,1761765044812,-500.0,0.00033702,2]
[392632825,1761765044822,-500.0,0.00033702,120]
[392632826,1761765044834,-501.51223479,0.00033702,2]
[392632827,1761765044843,-615.9,0.00033702,120]
[392632828,1761765044853,-502.8529432,0.00033702,2]
[392632829,1761765044863,-500.80694697,0.00033702,2]
[392632830,1761765044872,-500.0,0.00033702,2]
[392632831,1761765044881,-500.0,0.00033702,2]
[392632832,1761765044889,-500.0,0.00033702,120]
[392632833,1761765044898,-500.0,0.00033702,2]
[392632834,1761765044911,-500.0,0.00033702,120]
[392632835,1761765044921,-500.44565389,0.00033702,2]
[392632836,1761765044930,-501.17724567,0.00033702,2]
[392632837,1761765044940,-239.46084313,0.00033702,2]
[392632838,1761765044950,-500.33143006,0.00033702,2]
[392632839,1761765044959,-500.0,0.00033702,2]
[392632840,1761765044968,-500.0,0.00033702,2]
[392632841,1761765044978,-500.0,0.00033702,2]
[392632842,1761765044987,-500.0,0.00033702,2]
[392632843,1761765045000,-500.0,0.00033702,120]
[392632844,1761765045009,-500.0,0.00033702,120]
[392632845,1761765045018,-500.0,0.00033702,120]
[392632846,1761765045027,-305.3,0.00033702,120]
[392632847,1761765045036,-501.05085287,0.00033702,2]
[392632848,1761765045045,-373.00935131,0.00033702,2]
[392632849,1761765045053,-502.84140574,0.00033702,2]
[392632850,1761765045062,-300.0,0.00033702,2]
[392632851,1761765045071,-500.0,0.00033702,2]
[392632852,1761765045080,-500.0,0.00033702,120]
[392632853,1761765045090,-500.0,0.00033702,120]
[392632854,1761765045099,-500.0,0.00033702,120]
[392632855,1761765045107,-500.0,0.00033702,120]
[392632856,1761765045116,-500.0,0.00033702,120]
[392632857,1761765045125,-500.0,0.00033702,120]
[392632858,1761765045134,-500.0,0.00033702,120]
[392632859,1761765045142,-506.80809618,0.00033702,2]
[392632860,1761765045151,-500.0,0.00033702,120]
[392632861,1761765045159,-358.18881964,0.00033702,120]
[392632862,1761765045168,-500.0,0.00033702,2]
[392632863,1761765045178,-500.0,0.00033702,2]
[392632864,1761765045187,-500.0,0.00033702,120]
[392632865,1761765045196,-501.05921072,0.00033702,2]
[392632866,1761765045205,-500.0,0.00033702,2]
[392632867,1761765045213,-500.0,0.00033702,120]
[392632868,1761765045222,-500.0,0.00033702,120]
[392632869,1761765045231,-500.0,0.00033702,120]
[392632870,1761765045241,-178.12,0.00033702,120]
[392632871,1761765045250,-500.0,0.00033702,120]
[392632872,1761765045258,-500.0,0.00033702,2]
[392632873,1761765045268,-208.44,0.00033702,120]
[392632874,1761765045278,-500.0,0.00033702,120]
[392632875,1761765045287,-500.0,0.00033702,120]
[392632877,1761765045296,-500.0,0.00033702,2]
[392632878,1761765045306,-500.0,0.00033702,120]
[392632879,1761765045315,-235.37,0.00033702,120]
[392632880,1761765045324,-500.64997352,0.00033702,2]
[392632881,1761765045335,-501.13627791,0.00033702,2]
[392632882,1761765045345,-500.0,0.00033702,2]
[392632884,1761765045354,-500.0,0.00033702,120]
[392632885,1761765045363,-500.0,0.00033702,120]
[392632886,1761765045372,-500.0,0.00033702,120]
[392632887,1761765045381,-500.0,0.00033702,120]
[392632888,1761765045391,-500.0,0.00033702,120]
[392632889,1761765045400,-500.0,0.00033702,120]
[392632890,1761765045409,-504.86748003,0.00033702,2]
[392632891,1761765045419,-500.0,0.00033702,120]
[392632892,1761765045428,-500.0,0.00033702,120]
[392632893,1761765045438,-414.07025543,0.00033702,2]
[392632894,1761765045447,-611.56,0.00033702,120]
[392632895,1761765045456,-500.0,0.00033702,120]
[392632896,1761765045465,-500.0,0.00033702,2]
[392632897,1761765045474,-500.0,0.00033702,120]
[392632898,1761765045484,-500.0,0.00033702,120]
[392632899,1761765045494,-500.0,0.00033702,120]
[392632900,1761765045504,-236.03,0.00033702,120]
[392632901,1761765045514,-500.0,0.00033702,2]
[392632902,1761765045523,-500.0,0.00033702,2]
[392632903,1761765045533,-500.0,0.00033702,120]
[392632905,1761765045542,-500.0,0.00033702,120]
[392632906,1761765045551,-500.0,0.00033702,120]
[392632907,1761765045560,-500.0,0.00033702,120]
[392632908,1761765045569,-500.0,0.00033702,2]
[392632909,1761765045578,-500.0,0.00033702,2]
[392632910,1761765045590,-500.0,0.00033702,120]
[392632911,1761765045599,-500.0,0.00033702,120]
[392632912,1761765045608,-642.84,0.00033702,120]
[392632913,1761765045617,-500.0,0.00033702,120]
[392632914,1761765045626,-178.44,0.00033702,120]
[392632915,1761765045635,-500.0,0.00033702,120]
[392632916,1761765045643,-500.0,0.00033702,120]
[392632917,1761765045652,-500.0,0.00033702,120]
[392632918,1761765045662,-500.0,0.00033702,120]
[392632919,1761765045671,-500.83698874,0.00033702,2]
[392632920,1761765045681,-500.0,0.00033702,120]
[392632921,1761765045690,-500.0,0.00033702,120]
[392632922,1761765045699,-500.7269778,0.00033702,2]
[392632923,1761765045708,-500.0,0.00033702,120]
[392632924,1761765045717,-500.0,0.00033702,120]
[392632925,1761765045727,-500.0,0.00033702,120]
[392632926,1761765045738,-500.0,0.00033702,120]
[392632927,1761765045747,-500.0,0.00033702,120]
[392632928,1761765045757,-500.0,0.00033702,2]
[392632929,1761765045766,-500.0,0.00033702,120]
[392632930,1761765045775,-500.0,0.00033702,120]
[392632931,1761765045784,-500.0,0.00033702,120]
[392632932,1761765045793,-500.91905163,0.00033702,2]
[392632933,1761765045802,-562.48,0.00033702,120]
[392632934,1761765045812,-500.0,0.00033702,120]
[392632935,1761765045821,-500.0,0.00033702,120]
[392632936,1761765045830,-500.0,0.00033702,120]
[392632937,1761765045841,-500.0,0.00033702,120]
[392632938,1761765045852,-500.0,0.00033702,120]
[392632939,1761765045861,-500.0,0.00033702,120]
[392632940,1761765045871,-500.0,0.00033702,120]
[392632941,1761765045881,-500.0,0.00033702,120]
[392632942,1761765045890,-483.76771164,0.00033702,120]
[392632943,1761765045899,-500.0,0.00033702,2]
[392632944,1761765045910,-500.0,0.00033702,120]
[392632945,1761765045922,-500.0,0.00033702,2]
[392632946,1761765045932,-500.0,0.00033702,120]
[392632947,1761765045942,-500.0,0.00033702,2]
[392632948,1761765045951,-500.0,0.00033702,2]
[392632949,1761765045962,-500.0,0.00033702,120]
[392632950,1761765045972,-500.0,0.00033702,120]
[392632951,1761765045981,-500.0,0.00033702,120]
[392632952,1761765045993,-500.0,0.00033702,120]
[392632953,1761765046003,-500.0,0.00033702,120]
[392632954,1761765046012,-333.53,0.00033702,120]
[392632955,1761765046022,-500.0,0.00033702,120]
[392632956,1761765046031,-208.41,0.00033702,120]
[392632957,1761765046040,-500.0,0.00033702,120]
[392632958,1761765046051,-500.0,0.00033702,2]
[392632959,1761765046060,-500.0,0.00033702,120]
[392632960,1761765046070,-500.0,0.00033702,120]
[392632961,1761765046079,-500.0,0.00033702,120]
[392632962,1761765046091,-470.41087088,0.00033702,120]
[392632963,1761765046100,-500.0,0.00033702,120]
[392632965,1761765046110,-500.0,0.00033702,120]
[392632967,1761765046119,-500.0,0.00033702,120]
[392632968,1761765046128,-500.0,0.00033702,120]
[392632969,1761765046137,-500.0,0.00033702,2]
[392632971,1761765046146,-500.0,0.00033702,120]
[392632973,1761765046156,-500.0,0.00033702,120]
[392632975,1761765046165,-500.0,0.00033702,120]
[392632977,1761765046174,-500.0,0.00033702,120]
[392632978,1761765046183,-500.0,0.00033702,120]
[392632979,1761765046192,-500.0,0.00033702,120]
[392632980,1761765046202,-500.0,0.00033702,120]
[392632981,1761765046211,-500.0,0.00033702,120]
[392632982,1761765046221,-500.0,0.00033702,120]
[392632984,1761765046230,-500.0,0.00033702,120]
[392632986,1761765046240,-500.0,0.00033702,120]
[392632987,1761765046249,-453.33308829,0.00033702,120]
[392632988,1761765046258,-500.0,0.00033702,120]
[392632989,1761765046268,-500.0,0.00033702,120]
[392632991,1761765046277,-240.94218667,0.00033702,2]
[392632993,1761765046286,-500.0,0.00033702,120]
[392632994,1761765046296,-500.0,0.00033702,120]
[392632995,1761765046305,-211.85152724,0.00033702,120]
[392632996,1761765046314,-907.78,0.00033702,2]
[392632997,1761765046323,-907.78,0.00033702,2]
[392632998,1761765046334,-907.78,0.00033702,2]
[392632999,1761765046344,-500.0,0.00033702,2]
[392633000,1761765046353,-907.78,0.00033702,2]
[392633001,1761765046362,-500.0,0.00033702,120]
[392633002,1761765046371,-500.0,0.00033702,2]
[392633003,1761765046379,-907.78,0.00033702,2]
[392633004,1761765046388,-500.0,0.00033702,120]
[392633005,1761765046398,-500.0,0.00033702,120]
[392633006,1761765046407,-907.78,0.00033702,2]
[392633007,1761765046415,-500.0,0.00033702,120]
[392633008,1761765046424,-632.99,0.00033702,120]
[392633009,1761765046434,-500.0,0.00033702,120]
[392633010,1761765046442,-907.78,0.00033702,2]
[392633011,1761765046451,-500.0,0.00033702,120]
[392633012,1761765046460,-907.78,0.00033702,2]
[392633013,1761765046469,-500.0,0.00033702,120]
[392633014,1761765046478,-907.78,0.00033702,2]
[392633015,1761765046487,-375.01,0.00033702,120]
[392633016,1761765046496,-907.78,0.00033702,2]
[392633017,1761765046505,-907.78,0.00033702,2]
[392633018,1761765046514,-907.78,0.00033702,2]
[392633019,1761765046523,-500.0,0.00033702,2]
[392633020,1761765046532,-907.78,0.00033702,2]
[392633021,1761765046541,-500.0,0.00033702,120]
[392633022,1761765046550,-500.0,0.00033702,2]
[392633023,1761765046559,-907.78,0.00033702,2]
[392633024,1761765046667,-500.0,0.00033702,120]
[392633025,1761765046694,-907.78,0.00033702,2]
[392633026,1761765046703,-500.0,0.00033702,120]
[392633027,1761765046713,-500.0,0.00033702,120]
[392633028,1761765046722,-907.78,0.00033702,2]
[392633029,1761765046731,-500.0,0.00033702,120]
[392633030,1761765046741,-907.78,0.00033702,2]
[392633031,1761765046750,-529.05804847,0.00033702,120]
[392633032,1761765046758,-907.78,0.00033702,2]
[392633033,1761765046768,-907.78,0.00033702,2]
[392633034,1761765046777,-907.78,0.00033702,2]
[392633035,1761765046786,-907.78,0.00033702,2]
[392633036,1761765046795,-907.78,0.00033702,2]
[392633037,1761765046805,-907.78,0.00033702,2]
[392633038,1761765046814,-907.87,0.00033702,2]
[392633039,1761765046823,-502.96500768,0.00033702,2]
[392633040,1761765046835,-500.21102278,0.00033702,2]
[392633041,1761765046845,-500.0,0.00033702,2]
[392633042,1761765046854,-500.0,0.00033702,120]
[392633043,1761765046863,-182.56,0.00033702,120]
[392633044,1761765046874,-501.02955577,0.00033702,2]
[392633045,1761765046883,-500.80199223,0.00033702,2]
[392633046,1761765046892,-500.81799429,0.00033702,2]
[392633047,1761765046902,-512.66886925,0.00033702,2]
[392633048,1761765046917,-500.0,0.00033702,2]
[392633049,1761765046926,-500.0,0.00033702,2]
[392633050,1761765046935,-500.0,0.00033702,2]
[392633051,1761765046945,-500.0,0.00033702,120]
[392633052,1761765046956,-500.0,0.00033702,120]
[392633053,1761765046966,-500.0,0.00033702,120]
[392633054,1761765046976,-500.0,0.00033702,120]
[392633055,1761765046987,-500.0,0.00033702,120]
[392633056,1761765046998,-500.0,0.00033702,120]
[392633057,1761765047007,-500.0,0.00033702,120]
[392633058,1761765047016,-500.0,0.00033702,2]
[392633059,1761765047025,-500.0,0.00033702,120]
[392633060,1761765047035,-500.0,0.00033702,120]
[392633061,1761765047044,-500.0,0.00033702,120]
[392633062,1761765047053,-600.98,0.00033702,120]
[392633063,1761765047063,-500.0,0.00033702,120]
[392633064,1761765047072,-529.66,0.00033702,120]
[392633065,1761765047084,-501.46586246,0.00033702,2]
[392633066,1761765047094,-501.84071491,0.00033702,2]
[392633067,1761765047103,-500.0,0.00033702,2]
[392633068,1761765047112,-500.0,0.00033702,120]
[392633069,1761765047122,-309.13,0.00033702,120]
[392633070,1761765047131,-500.18536716,0.00033702,2]
[392633071,1761765047140,-500.0,0.00033702,2]
[392633072,1761765047149,-500.0,0.00033702,120]
[392633073,1761765047158,-500.0,0.00033702,120]
[392633074,1761765047167,-500.0,0.00033702,2]
[392633075,1761765047177,-500.0,0.00033702,120]
[392633076,1761765047186,-500.0,0.00033702,120]
[392633077,1761765047195,-500.0,0.00033702,120]
[392633078,1761765047205,-500.0,0.00033702,2]
[392633079,1761765047214,-500.0,0.00033702,120]
[392633080,1761765047223,-500.0,0.00033702,120]
[392633081,1761765047232,-500.0,0.00033702,120]
[392633082,1761765047241,-500.0,0.00033702,120]
[392633083,1761765047250,-269.91,0.00033702,120]
[392633084,1761765047262,-210.23,0.00033702,120]
[392633085,1761765047271,-502.01855768,0.00033702,2]
[392633086,1761765047281,-500.0,0.00033702,2]
[392633087,1761765047291,-500.0,0.00033702,120]
[392633088,1761765047301,-500.0,0.00033702,120]
[392633089,1761765047311,-592.07,0.00033702,120]
[392633090,1761765047320,-1181.08,0.00033702,2]
[392633091,1761765047330,-1181.08,0.00033702,120]
[392633092,1761765047341,-1181.08,0.00033702,120]
[392633093,1761765047351,-1181.08,0.00033702,120]
[392633094,1761765047361,-1181.08,0.00033702,120]
[392633095,1761765047370,-500.0,0.00033702,2]
[392633096,1761765047379,-500.78765087,0.00033702,2]
[392633097,1761765047388,-501.41519673,0.00033702,2]
[392633098,1761765047398,-1181.08,0.00033702,120]